[Event "Early-Titled-Tuesday-Blitz-January-16-2024"]
[Site "Chess.com"]
[Date "2024.01.16"]
[Round "10"]
[White "CaspiIsrael"]
[Black "01Roman"]
[Result "1-0"]
[WhiteElo "2656"]
[BlackElo "2481"]
[TimeControl "180+1"]
[EndTime "9:59:50 PST"]
[Termination "CaspiIsrael won on time"]

1. e4 {[%clk 0:03:00.9]} 1... e5 {[%clk 0:02:58.1]} 2. d4 {[%clk 0:03:00.5]}
2... exd4 {[%clk 0:02:44.3]} 3. Qxd4 {[%clk 0:03:01.4]} 3... Nc6 {[%clk
0:02:42.5]} 4. Qd3 {[%clk 0:03:01.2]} 4... Nf6 {[%clk 0:02:41.6]} 5. Nc3 {[%clk
0:02:59.8]} 5... Bb4 {[%clk 0:02:36.6]} 6. Ne2 {[%clk 0:02:58.4]} 6... Qe7
{[%clk 0:02:34.3]} 7. a3 {[%clk 0:02:56.3]} 7... Ba5 {[%clk 0:02:32.7]} 8. Be3
{[%clk 0:02:49.5]} 8... Nxe4 {[%clk 0:02:03.2]} 9. b4 {[%clk 0:02:48.8]} 9...
Nxc3 {[%clk 0:02:02.8]} 10. Nxc3 {[%clk 0:02:47.1]} 10... Bb6 {[%clk 0:02:02.2]}
11. Nd5 {[%clk 0:02:47.3]} 11... Qe5 {[%clk 0:01:57.4]} 12. O-O-O {[%clk
0:02:47.1]} 12... Bxe3+ {[%clk 0:01:49.1]} 13. Qxe3 {[%clk 0:02:43.3]} 13...
Qxe3+ {[%clk 0:01:40.9]} 14. Nxe3 {[%clk 0:02:44.2]} 14... Ne7 {[%clk
0:01:35.2]} 15. Bb5 {[%clk 0:02:39.3]} 15... c6 {[%clk 0:01:31.3]} 16. Bd3
{[%clk 0:02:38.1]} 16... d5 {[%clk 0:01:31.1]} 17. c4 {[%clk 0:02:38.2]} 17...
Be6 {[%clk 0:01:28.5]} 18. cxd5 {[%clk 0:02:33.8]} 18... Nxd5 {[%clk 0:01:29.4]}
19. Nxd5 {[%clk 0:02:34]} 19... Bxd5 {[%clk 0:01:28.1]} 20. Rhe1+ {[%clk
0:02:34.4]} 20... Kd7 {[%clk 0:01:23.6]} 21. Bc4 {[%clk 0:02:21.4]} 21... Kd6
{[%clk 0:01:23.3]} 22. Rd2 {[%clk 0:02:17.4]} 22... Rae8 {[%clk 0:01:22.4]} 23.
Red1 {[%clk 0:02:17.2]} 23... Re5 {[%clk 0:01:22.2]} 24. f4 {[%clk 0:02:16.1]}
24... Rf5 {[%clk 0:01:20.6]} 25. g3 {[%clk 0:02:13.4]} 25... h5 {[%clk
0:01:16.1]} 26. Bd3 {[%clk 0:02:11.8]} 26... Rf6 {[%clk 0:01:15.8]} 27. Be4
{[%clk 0:02:12.4]} 27... h4 {[%clk 0:01:14.1]} 28. Bxd5 {[%clk 0:02:12.3]} 28...
cxd5 {[%clk 0:01:14.7]} 29. Rxd5+ {[%clk 0:02:13.2]} 29... Kc6 {[%clk
0:01:13.2]} 30. Rc5+ {[%clk 0:02:13.3]} 30... Kb6 {[%clk 0:01:13.1]} 31. Kb2
{[%clk 0:01:47.2]} 31... hxg3 {[%clk 0:01:12.4]} 32. hxg3 {[%clk 0:01:48.1]}
32... Rh2+ {[%clk 0:01:11.9]} 33. Kb3 {[%clk 0:01:47.7]} 33... Re6 {[%clk
0:01:00.5]} 34. Rd3 {[%clk 0:01:46.8]} 34... a6 {[%clk 0:00:58.4]} 35. a4 {[%clk
0:01:46.9]} 35... Rc6 {[%clk 0:00:54]} 36. a5+ {[%clk 0:01:43.9]} 36... Kc7
{[%clk 0:00:53.7]} 37. Rf5 {[%clk 0:01:39.7]} 37... f6 {[%clk 0:00:53.2]} 38.
Rfd5 {[%clk 0:01:40.1]} 38... Rh1 {[%clk 0:00:40.7]} 39. Rd7+ {[%clk 0:01:37.2]}
39... Kb8 {[%clk 0:00:38.8]} 40. Rxg7 {[%clk 0:01:36.9]} 40... Rb1+ {[%clk
0:00:37.8]} 41. Ka3 {[%clk 0:01:28.7]} 41... Ra1+ {[%clk 0:00:24.7]} 42. Kb2
{[%clk 0:01:28.1]} 42... Rcc1 {[%clk 0:00:24]} 43. Re7 {[%clk 0:00:54]} 43...
Rab1+ {[%clk 0:00:20.1]} 44. Ka3 {[%clk 0:00:51.8]} 44... Ra1+ {[%clk 0:00:20]}
45. Kb3 {[%clk 0:00:52.3]} 45... Rab1+ {[%clk 0:00:20.1]} 46. Ka4 {[%clk
0:00:52.2]} 46... Rc4 {[%clk 0:00:20]} 47. Rb3 {[%clk 0:00:48.4]} 47... Ra1+
{[%clk 0:00:19.7]} 48. Ra3 {[%clk 0:00:48.8]} 48... Rb1 {[%clk 0:00:20.1]} 49.
Rb3 {[%clk 0:00:35.9]} 49... Ra1+ {[%clk 0:00:19.9]} 50. Ra3 {[%clk 0:00:36.4]}
50... Rb1 {[%clk 0:00:19.7]} 51. Re8+ {[%clk 0:00:36.8]} 51... Ka7 {[%clk
0:00:18.4]} 52. Rae3 {[%clk 0:00:29.8]} 52... Ra1+ {[%clk 0:00:17.8]} 53. Kb3
{[%clk 0:00:29.8]} 53... Rcc1 {[%clk 0:00:14.1]} 54. R8e4 {[%clk 0:00:28.4]}
54... Rab1+ {[%clk 0:00:12.8]} 55. Ka4 {[%clk 0:00:27.1]} 55... f5 {[%clk
0:00:12.2]} 56. Rd4 {[%clk 0:00:26.9]} 56... Ra1+ {[%clk 0:00:12.1]} 57. Ra3
{[%clk 0:00:27.2]} 57... Rab1 {[%clk 0:00:12.4]} 58. Ra2 {[%clk 0:00:20.8]}
58... Rc3 {[%clk 0:00:10.6]} 59. Rd5 {[%clk 0:00:19.3]} 59... Rc4 {[%clk
0:00:09.2]} 60. Rg2 {[%clk 0:00:13.8]} 60... Rbxb4+ {[%clk 0:00:06.4]} 61. Ka3
{[%clk 0:00:14]} 61... Ra4+ {[%clk 0:00:05.1]} 62. Kb2 {[%clk 0:00:14.1]} 62...
Rab4+ {[%clk 0:00:05.5]} 63. Ka1 {[%clk 0:00:12.7]} 63... Ra4+ {[%clk
0:00:04.8]} 64. Ra2 {[%clk 0:00:12.7]} 64... Rab4 {[%clk 0:00:04.5]} 65. Rb2
{[%clk 0:00:11]} 65... Ra4+ {[%clk 0:00:02.6]} 66. Kb1 {[%clk 0:00:11.3]} 66...
Rc3 {[%clk 0:00:02.3]} 67. Rg2 {[%clk 0:00:10.1]} 67... Rb4+ {[%clk 0:00:02]}
68. Ka2 {[%clk 0:00:09.8]} 68... Rbb3 {[%clk 0:00:02.2]} 69. Rxf5 {[%clk
0:00:06.9]} 69... Ra3+ {[%clk 0:00:01.8]} 70. Kb1 {[%clk 0:00:07.5]} 70... Rab3+
{[%clk 0:00:02]} 71. Rb2 {[%clk 0:00:08.1]} 71... Rxg3 {[%clk 0:00:02.2]} 72.
Rxb3 {[%clk 0:00:08.2]} 72... Rxb3+ {[%clk 0:00:03.1]} 73. Kc2 {[%clk
0:00:08.8]} 73... Rf3 {[%clk 0:00:02.6]} 74. Kd2 {[%clk 0:00:08.9]} 74... Kb8
{[%clk 0:00:02.4]} 75. Ke2 {[%clk 0:00:08.5]} 75... Ra3 {[%clk 0:00:01.9]} 76.
Rc5 {[%clk 0:00:08.4]} 1-0

[Event "Early-Titled-Tuesday-Blitz-January-16-2024"]
[Site "Chess.com"]
[Date "2024.01.16"]
[Round "10"]
[White "Bauman_Guy"]
[Black "Nikolakis2014"]
[Result "0-1"]
[WhiteElo "2901"]
[BlackElo "2756"]
[TimeControl "180+1"]
[EndTime "10:00:52 PST"]
[Termination "Nikolakis2014 won on time"]

1. e4 {[%clk 0:03:00.9]} 1... c5 {[%clk 0:02:59.7]} 2. Nf3 {[%clk 0:03:01]} 2...
Nc6 {[%clk 0:02:59.1]} 3. d4 {[%clk 0:03:01.4]} 3... cxd4 {[%clk 0:02:59.3]} 4.
Nxd4 {[%clk 0:03:02.3]} 4... e5 {[%clk 0:02:59.6]} 5. Nb5 {[%clk 0:03:02.3]}
5... d6 {[%clk 0:02:59.8]} 6. a4 {[%clk 0:03:02]} 6... Be7 {[%clk 0:02:58.4]} 7.
N1c3 {[%clk 0:03:02]} 7... a6 {[%clk 0:02:57.4]} 8. Na3 {[%clk 0:03:02.3]} 8...
Nf6 {[%clk 0:02:56.1]} 9. Bg5 {[%clk 0:03:02.2]} 9... Bg4 {[%clk 0:02:54.6]} 10.
Be2 {[%clk 0:03:01.8]} 10... Bxe2 {[%clk 0:02:53.5]} 11. Qxe2 {[%clk 0:03:02.2]}
11... O-O {[%clk 0:02:50.2]} 12. Bxf6 {[%clk 0:03:00.9]} 12... Bxf6 {[%clk
0:02:49.7]} 13. Nd5 {[%clk 0:03:01.8]} 13... Rc8 {[%clk 0:02:43.1]} 14. c3
{[%clk 0:03:01.2]} 14... Ne7 {[%clk 0:02:35.2]} 15. Rd1 {[%clk 0:02:56.2]} 15...
Nxd5 {[%clk 0:02:25.4]} 16. Rxd5 {[%clk 0:02:54.6]} 16... Be7 {[%clk 0:02:25.6]}
17. O-O {[%clk 0:02:53.6]} 17... Qc7 {[%clk 0:02:12.4]} 18. Rfd1 {[%clk
0:02:53]} 18... f5 {[%clk 0:02:09.4]} 19. exf5 {[%clk 0:02:49.7]} 19... Rxf5
{[%clk 0:02:09.5]} 20. Nc2 {[%clk 0:02:50]} 20... Rcf8 {[%clk 0:02:07.9]} 21. f3
{[%clk 0:02:46.7]} 21... Rf4 {[%clk 0:02:07.7]} 22. a5 {[%clk 0:02:41.5]} 22...
Ra4 {[%clk 0:02:01.8]} 23. Nb4 {[%clk 0:02:17]} 23... Rxa5 {[%clk 0:01:51.8]}
24. Rxa5 {[%clk 0:02:17.9]} 24... Qxa5 {[%clk 0:01:52]} 25. Qc4+ {[%clk
0:02:15.4]} 25... Kh8 {[%clk 0:01:51.2]} 26. Nd5 {[%clk 0:02:16.3]} 26... Bg5
{[%clk 0:01:47]} 27. h4 {[%clk 0:02:15.7]} 27... Bh6 {[%clk 0:01:43.5]} 28. Qc7
{[%clk 0:01:41.3]} 28... Qa4 {[%clk 0:01:41.8]} 29. Rd3 {[%clk 0:01:02.8]} 29...
Qxh4 {[%clk 0:01:36.1]} 30. Qxd6 {[%clk 0:00:59.5]} 30... Re8 {[%clk 0:01:18.5]}
31. Rd1 {[%clk 0:00:46.1]} 31... e4 {[%clk 0:01:12.2]} 32. fxe4 {[%clk
0:00:33.6]} 32... Qxe4 {[%clk 0:01:11.5]} 33. Rf1 {[%clk 0:00:24.3]} 33... Be3+
{[%clk 0:00:30.7]} 34. Kh1 {[%clk 0:00:23]} 34... Qh4+ {[%clk 0:00:26]} 35. Qh2
{[%clk 0:00:23.1]} 35... Qxh2+ {[%clk 0:00:26.3]} 36. Kxh2 {[%clk 0:00:24]}
36... Bc5 {[%clk 0:00:26.7]} 37. Rf7 {[%clk 0:00:23.1]} 37... b6 {[%clk
0:00:25.8]} 38. Rb7 {[%clk 0:00:22.2]} 38... Bd6+ {[%clk 0:00:24.1]} 39. Kh3
{[%clk 0:00:21.1]} 39... h5 {[%clk 0:00:23.6]} 40. Kh4 {[%clk 0:00:16.9]} 40...
Re2 {[%clk 0:00:22.8]} 41. Rxb6 {[%clk 0:00:14.4]} 41... Be5 {[%clk 0:00:22.6]}
42. Kxh5 {[%clk 0:00:11.1]} 42... Rxg2 {[%clk 0:00:22.2]} 43. Ne7 {[%clk
0:00:11]} 43... Kh7 {[%clk 0:00:21.2]} 44. Ng6 {[%clk 0:00:11.1]} 44... Bf6
{[%clk 0:00:20.4]} 45. Nf8+ {[%clk 0:00:10]} 45... Kg8 {[%clk 0:00:20.2]} 46.
Ne6 {[%clk 0:00:10.9]} 46... Kf7 {[%clk 0:00:19.7]} 47. Nxg7 {[%clk 0:00:04.3]}
47... Kxg7 {[%clk 0:00:18.8]} 48. Rb7+ {[%clk 0:00:04.3]} 48... Kg8 {[%clk
0:00:18.7]} 49. Rb6 {[%clk 0:00:05.2]} 49... Kg7 {[%clk 0:00:17.6]} 50. Rb7+
{[%clk 0:00:05.3]} 50... Kh8 {[%clk 0:00:15.6]} 51. Rb6 {[%clk 0:00:06.2]} 51...
Be7 {[%clk 0:00:08.4]} 52. Rxa6 {[%clk 0:00:04.2]} 52... Rxb2 {[%clk 0:00:07.5]}
53. c4 {[%clk 0:00:04.6]} 53... Kg7 {[%clk 0:00:07.5]} 54. Kg4 {[%clk
0:00:04.4]} 54... Kf7 {[%clk 0:00:08.1]} 55. Kf5 {[%clk 0:00:04.6]} 55... Rf2+
{[%clk 0:00:08.3]} 56. Ke4 {[%clk 0:00:05]} 56... Re2+ {[%clk 0:00:08.3]} 57.
Kd5 {[%clk 0:00:05.5]} 57... Rd2+ {[%clk 0:00:08]} 58. Ke4 {[%clk 0:00:06.1]}
58... Rc2 {[%clk 0:00:08.1]} 59. Rc6 {[%clk 0:00:06.4]} 59... Rc1 {[%clk
0:00:08.4]} 60. Kd3 {[%clk 0:00:05.8]} 60... Ke8 {[%clk 0:00:09]} 61. Rg6 {[%clk
0:00:05.4]} 61... Kd7 {[%clk 0:00:09.5]} 62. Rh6 {[%clk 0:00:06]} 62... Rd1+
{[%clk 0:00:09.8]} 63. Kc2 {[%clk 0:00:06.4]} 63... Rg1 {[%clk 0:00:09.9]} 64.
Kd3 {[%clk 0:00:06.7]} 64... Rg3+ {[%clk 0:00:10]} 65. Kd4 {[%clk 0:00:07.2]}
65... Rg4+ {[%clk 0:00:09]} 66. Kd5 {[%clk 0:00:07.7]} 66... Rg5+ {[%clk
0:00:09.5]} 67. Kd4 {[%clk 0:00:08.3]} 67... Bc5+ {[%clk 0:00:10.1]} 68. Ke4
{[%clk 0:00:08.1]} 68... Kc7 {[%clk 0:00:09.1]} 69. Rf6 {[%clk 0:00:07.7]} 69...
Bd6 {[%clk 0:00:08.5]} 70. Rh6 {[%clk 0:00:06.3]} 70... Re5+ {[%clk 0:00:08.6]}
71. Kd4 {[%clk 0:00:06.5]} 71... Rg5 {[%clk 0:00:08.7]} 72. Re6 {[%clk
0:00:05.5]} 72... Kc6 {[%clk 0:00:08.6]} 73. Rh6 {[%clk 0:00:06]} 73... Rg4+
{[%clk 0:00:08.7]} 74. Kd3 {[%clk 0:00:06.6]} 74... Kc5 {[%clk 0:00:08.9]} 75.
Rh5+ {[%clk 0:00:06.9]} 75... Kc6 {[%clk 0:00:09.1]} 76. Rf5 {[%clk 0:00:05.4]}
76... Rg3+ {[%clk 0:00:08.4]} 77. Kd4 {[%clk 0:00:06]} 77... Rg4+ {[%clk
0:00:08.5]} 78. Kd3 {[%clk 0:00:06.5]} 78... Rh4 {[%clk 0:00:08.8]} 79. Rg5
{[%clk 0:00:06.4]} 79... Rf4 {[%clk 0:00:08.6]} 80. Rh5 {[%clk 0:00:06.6]} 80...
Bc5 {[%clk 0:00:08.5]} 81. Rh6+ {[%clk 0:00:06.3]} 81... Kb7 {[%clk 0:00:08.7]}
82. Rh5 {[%clk 0:00:05.2]} 82... Kb6 {[%clk 0:00:08.7]} 83. Rg5 {[%clk
0:00:05.5]} 83... Rd4+ {[%clk 0:00:08]} 84. Kc3 {[%clk 0:00:05.7]} 84... Re4
{[%clk 0:00:08.4]} 85. Rh5 {[%clk 0:00:06.1]} 85... Re3+ {[%clk 0:00:08.6]} 86.
Kc2 {[%clk 0:00:06.6]} 86... Rg3 {[%clk 0:00:08.8]} 87. Rf5 {[%clk 0:00:06.3]}
87... Bd4 {[%clk 0:00:08.6]} 88. Rb5+ {[%clk 0:00:05.6]} 88... Kc6 {[%clk
0:00:08.2]} 89. Rd5 {[%clk 0:00:06.5]} 89... Rc3+ {[%clk 0:00:07.9]} 90. Kd2
{[%clk 0:00:04.4]} 90... Rxc4 {[%clk 0:00:08.5]} 91. Rf5 {[%clk 0:00:04.8]}
91... Bc5 {[%clk 0:00:09]} 92. Kd3 {[%clk 0:00:04.8]} 92... Rd4+ {[%clk
0:00:08.5]} 93. Kc3 {[%clk 0:00:05.4]} 93... Rg4 {[%clk 0:00:07.8]} 94. Rh5
{[%clk 0:00:04.1]} 94... Kb5 {[%clk 0:00:08.2]} 95. Rh7 {[%clk 0:00:03.1]} 95...
Rg3+ {[%clk 0:00:08.4]} 96. Kd2 {[%clk 0:00:03.7]} 96... Kc4 {[%clk 0:00:09]}
97. Rc7 {[%clk 0:00:03.4]} 97... Kd4 {[%clk 0:00:08.4]} 98. Rc8 {[%clk
0:00:02.8]} 98... Rg2+ {[%clk 0:00:07.8]} 99. Ke1 {[%clk 0:00:02.9]} 99... Rb2
{[%clk 0:00:05.8]} 100. Kd1 {[%clk 0:00:03]} 100... Bb4 {[%clk 0:00:04.3]} 101.
Rd8+ {[%clk 0:00:03.1]} 101... Kc3 {[%clk 0:00:04.2]} 102. Rc8+ {[%clk
0:00:03.4]} 102... Kb3 {[%clk 0:00:04.5]} 103. Kc1 {[%clk 0:00:03]} 103... Re2
{[%clk 0:00:04.3]} 104. Rd8 {[%clk 0:00:02.3]} 104... Re3 {[%clk 0:00:02.6]}
105. Rd7 {[%clk 0:00:01.5]} 105... Bc3 {[%clk 0:00:02.3]} 0-1

[Event "Early-Titled-Tuesday-Blitz-January-16-2024"]
[Site "Chess.com"]
[Date "2024.01.16"]
[Round "11"]
[White "blitzking1729"]
[Black "Phelathegreat"]
[Result "1-0"]
[WhiteElo "2696"]
[BlackElo "2464"]
[TimeControl "180+1"]
[EndTime "10:03:20 PST"]
[Termination "blitzking1729 won by resignation"]

1. c4 {[%clk 0:03:00.9]} 1... e6 {[%clk 0:02:57.3]} 2. Nc3 {[%clk 0:03:01]} 2...
d5 {[%clk 0:02:57.6]} 3. e3 {[%clk 0:02:59.1]} 3... Nf6 {[%clk 0:02:57.4]} 4.
Nf3 {[%clk 0:02:59]} 4... Be7 {[%clk 0:02:57.2]} 5. b3 {[%clk 0:02:58.6]} 5...
O-O {[%clk 0:02:56.9]} 6. Bb2 {[%clk 0:02:58.8]} 6... b6 {[%clk 0:02:54.9]} 7.
cxd5 {[%clk 0:02:57]} 7... Nxd5 {[%clk 0:02:54.7]} 8. Nxd5 {[%clk 0:02:56]} 8...
Qxd5 {[%clk 0:02:54.5]} 9. Qc2 {[%clk 0:02:55.5]} 9... c5 {[%clk 0:02:52.2]} 10.
Bd3 {[%clk 0:02:55.5]} 10... h6 {[%clk 0:02:47]} 11. Bh7+ {[%clk 0:02:51.4]}
11... Kh8 {[%clk 0:02:45.9]} 12. Be4 {[%clk 0:02:52.3]} 1-0

[Event "Early-Titled-Tuesday-Blitz-January-16-2024"]
[Site "Chess.com"]
[Date "2024.01.16"]
[Round "11"]
[White "ChampStan"]
[Black "missponyo10"]
[Result "0-1"]
[WhiteElo "2119"]
[BlackElo "2251"]
[TimeControl "180+1"]
[EndTime "10:04:01 PST"]
[Termination "missponyo10 won by resignation"]

1. e4 {[%clk 0:03:00.9]} 1... c5 {[%clk 0:02:43.8]} 2. Nf3 {[%clk 0:02:59.5]}
2... d6 {[%clk 0:02:43.4]} 3. d4 {[%clk 0:02:59.6]} 3... cxd4 {[%clk 0:02:44.3]}
4. Nxd4 {[%clk 0:03:00.5]} 4... Nf6 {[%clk 0:02:44.8]} 5. Nc3 {[%clk 0:03:00.5]}
5... a6 {[%clk 0:02:45.1]} 6. Bg5 {[%clk 0:03:00.2]} 6... Nbd7 {[%clk
0:02:44.1]} 7. f4 {[%clk 0:02:57.1]} 7... Qc7 {[%clk 0:02:44]} 8. Qf3 {[%clk
0:02:56.9]} 8... h6 {[%clk 0:02:44.2]} 9. Bh4 {[%clk 0:02:56]} 9... g5 {[%clk
0:02:44.8]} 10. fxg5 {[%clk 0:02:54.3]} 10... hxg5 {[%clk 0:02:45.7]} 11. Bxg5
{[%clk 0:02:52.4]} 11... Qc5 {[%clk 0:02:45.9]} 12. Be3 {[%clk 0:02:49.8]} 12...
Ne5 {[%clk 0:02:45.8]} 13. Qg3 {[%clk 0:02:46.1]} 13... Neg4 {[%clk 0:02:39.4]}
14. O-O-O {[%clk 0:02:45.9]} 14... Nxe3 {[%clk 0:02:30.5]} 15. Qxe3 {[%clk
0:02:46]} 15... Bg4 {[%clk 0:02:27.4]} 16. Be2 {[%clk 0:02:40.5]} 16... Bh6
{[%clk 0:02:26.9]} 0-1

[Event "Early-Titled-Tuesday-Blitz-January-16-2024"]
[Site "Chess.com"]
[Date "2024.01.16"]
[Round "11"]
[White "Nasrin_Babayeva"]
[Black "BelyakovBogdan"]
[Result "0-1"]
[WhiteElo "1912"]
[BlackElo "2502"]
[TimeControl "180+1"]
[EndTime "10:04:05 PST"]
[Termination "BelyakovBogdan won by resignation"]

1. e4 {[%clk 0:03:00.9]} 1... e5 {[%clk 0:02:59.8]} 2. d3 {[%clk 0:02:59.7]}
2... Nc6 {[%clk 0:02:59.6]} 3. Nd2 {[%clk 0:02:59]} 3... Bc5 {[%clk 0:02:58.7]}
4. c3 {[%clk 0:02:59]} 4... a5 {[%clk 0:02:55.7]} 5. Ngf3 {[%clk 0:02:58.4]}
5... Nf6 {[%clk 0:02:55.4]} 6. Be2 {[%clk 0:02:58.4]} 6... d6 {[%clk 0:02:53.8]}
7. O-O {[%clk 0:02:58]} 7... O-O {[%clk 0:02:51.2]} 8. Qc2 {[%clk 0:02:53.8]}
8... h6 {[%clk 0:02:47.6]} 9. Re1 {[%clk 0:02:53.5]} 9... Ng4 {[%clk 0:02:46.5]}
10. Rf1 {[%clk 0:02:46.8]} 10... f5 {[%clk 0:02:45.6]} 11. h3 {[%clk 0:02:40.3]}
11... Nf6 {[%clk 0:02:45.2]} 12. a3 {[%clk 0:02:34.1]} 12... fxe4 {[%clk
0:02:42.6]} 13. dxe4 {[%clk 0:02:33.5]} 13... Nh5 {[%clk 0:02:33.9]} 14. Re1
{[%clk 0:02:29.1]} 14... Nf4 {[%clk 0:02:29.1]} 15. Bf1 {[%clk 0:02:28.9]} 15...
Qf6 {[%clk 0:02:27.5]} 16. g3 {[%clk 0:02:27.3]} 16... Nxh3+ {[%clk 0:02:26.3]}
17. Bxh3 {[%clk 0:02:26.6]} 17... Bxh3 {[%clk 0:02:27.2]} 0-1

[Event "Early-Titled-Tuesday-Blitz-January-16-2024"]
[Site "Chess.com"]
[Date "2024.01.16"]
[Round "11"]
[White "UnTucopalaTimba"]
[Black "maurovargas01"]
[Result "0-1"]
[WhiteElo "1971"]
[BlackElo "1851"]
[TimeControl "180+1"]
[EndTime "10:04:46 PST"]
[Termination "maurovargas01 won by resignation"]

1. e4 {[%clk 0:03:00.1]} 1... c5 {[%clk 0:02:53.7]} 2. Nf3 {[%clk 0:02:59]} 2...
Nc6 {[%clk 0:02:53]} 3. d4 {[%clk 0:02:58]} 3... cxd4 {[%clk 0:02:51.7]} 4. Nxd4
{[%clk 0:02:58.2]} 4... d6 {[%clk 0:02:51.3]} 5. Nc3 {[%clk 0:02:57]} 5... Nf6
{[%clk 0:02:51]} 6. Be2 {[%clk 0:02:52.9]} 6... g6 {[%clk 0:02:50.2]} 7. O-O
{[%clk 0:02:49.9]} 7... Bg7 {[%clk 0:02:50.3]} 8. Be3 {[%clk 0:02:46.7]} 8...
O-O {[%clk 0:02:49.2]} 9. Qd2 {[%clk 0:02:36.3]} 9... Bd7 {[%clk 0:02:48.3]} 10.
Rfd1 {[%clk 0:02:27.6]} 10... Rc8 {[%clk 0:02:47.1]} 11. Bh6 {[%clk 0:02:21]}
11... Nxd4 {[%clk 0:02:43.3]} 12. Qxd4 {[%clk 0:02:13.7]} 12... Bxh6 {[%clk
0:02:43.1]} 13. e5 {[%clk 0:02:08.9]} 13... dxe5 {[%clk 0:02:38.7]} 14. Qxe5
{[%clk 0:02:08.9]} 14... Bg7 {[%clk 0:02:35.7]} 15. Qe3 {[%clk 0:02:01.8]} 15...
Qb6 {[%clk 0:02:32.4]} 16. Qxe7 {[%clk 0:01:54.8]} 16... Rfe8 {[%clk 0:02:29.5]}
17. Qa3 {[%clk 0:01:48.4]} 17... Rxc3 {[%clk 0:02:27.6]} 0-1

[Event "Early-Titled-Tuesday-Blitz-January-16-2024"]
[Site "Chess.com"]
[Date "2024.01.16"]
[Round "11"]
[White "Zohid6"]
[Black "MagnusCarlsen"]
[Result "0-1"]
[WhiteElo "2834"]
[BlackElo "3289"]
[TimeControl "180+1"]
[EndTime "10:05:17 PST"]
[Termination "MagnusCarlsen won by resignation"]

1. d4 {[%clk 0:03:00.9]} 1... Nf6 {[%clk 0:02:59.7]} 2. Nc3 {[%clk 0:03:00.7]}
2... d5 {[%clk 0:02:59.2]} 3. Bf4 {[%clk 0:03:00.5]} 3... a6 {[%clk 0:02:59.7]}
4. e3 {[%clk 0:03:00.4]} 4... b5 {[%clk 0:02:55.7]} 5. h4 {[%clk 0:03:00.2]}
5... h6 {[%clk 0:02:55.7]} 6. Bd3 {[%clk 0:02:57.7]} 6... e6 {[%clk 0:02:54.8]}
7. Nce2 {[%clk 0:02:57.5]} 7... c5 {[%clk 0:02:55.1]} 8. c3 {[%clk 0:02:57.7]}
8... Nc6 {[%clk 0:02:55.7]} 9. Nf3 {[%clk 0:02:57.9]} 9... Bd6 {[%clk
0:02:55.3]} 10. dxc5 {[%clk 0:02:57.8]} 10... Bxc5 {[%clk 0:02:53.3]} 11. Ned4
{[%clk 0:02:58.2]} 11... Bb7 {[%clk 0:02:50.7]} 12. Nxc6 {[%clk 0:02:52.9]}
12... Bxc6 {[%clk 0:02:50.6]} 13. Nd4 {[%clk 0:02:53.2]} 13... Bd7 {[%clk
0:02:50.5]} 14. Be5 {[%clk 0:02:46.3]} 14... Qb6 {[%clk 0:02:49.1]} 15. Qe2
{[%clk 0:02:31.9]} 15... Bd6 {[%clk 0:02:49]} 16. Nf3 {[%clk 0:02:32.1]} 16...
Ng4 {[%clk 0:02:44]} 17. Bxd6 {[%clk 0:02:30.6]} 17... Qxd6 {[%clk 0:02:43.7]}
18. e4 {[%clk 0:02:31.3]} 18... O-O {[%clk 0:02:43.2]} 19. e5 {[%clk 0:02:28.4]}
19... Qc7 {[%clk 0:02:43.4]} 20. Rh3 {[%clk 0:02:20.6]} 20... f6 {[%clk
0:02:43.3]} 21. exf6 {[%clk 0:02:11.7]} 21... Rxf6 {[%clk 0:02:44.2]} 22. O-O-O
{[%clk 0:01:53.6]} 22... e5 {[%clk 0:02:44.1]} 23. Bc2 {[%clk 0:01:52.1]} 23...
e4 {[%clk 0:02:44.3]} 24. Bb3 {[%clk 0:01:40.2]} 24... exf3 {[%clk 0:02:44.3]}
25. Bxd5+ {[%clk 0:01:39.4]} 25... Kh8 {[%clk 0:02:44.5]} 26. gxf3 {[%clk
0:01:34.3]} 26... Re8 {[%clk 0:02:44.4]} 27. Qd2 {[%clk 0:01:28.5]} 27... Nxf2
{[%clk 0:02:45]} 0-1

[Event "Early-Titled-Tuesday-Blitz-January-16-2024"]
[Site "Chess.com"]
[Date "2024.01.16"]
[Round "11"]
[White "talaicito"]
[Black "Allion2017"]
[Result "1-0"]
[WhiteElo "2273"]
[BlackElo "2046"]
[TimeControl "180+1"]
[EndTime "10:06:03 PST"]
[Termination "talaicito won by checkmate"]

1. d4 {[%clk 0:03:00.9]} 1... d5 {[%clk 0:02:58.2]} 2. Nc3 {[%clk 0:03:01.3]}
2... Nf6 {[%clk 0:02:57.3]} 3. Bf4 {[%clk 0:03:01.7]} 3... Bf5 {[%clk
0:02:54.5]} 4. e3 {[%clk 0:03:01.9]} 4... e6 {[%clk 0:02:54.4]} 5. f3 {[%clk
0:03:01.6]} 5... c5 {[%clk 0:02:51.6]} 6. Nb5 {[%clk 0:03:00.3]} 6... Na6 {[%clk
0:02:50.2]} 7. c3 {[%clk 0:03:00.4]} 7... Rc8 {[%clk 0:02:48.7]} 8. Nxa7 {[%clk
0:02:58.8]} 8... Ra8 {[%clk 0:02:46.9]} 9. Nb5 {[%clk 0:02:58.9]} 9... Be7
{[%clk 0:02:46.4]} 10. a4 {[%clk 0:02:54.5]} 10... O-O {[%clk 0:02:46.1]} 11. g4
{[%clk 0:02:54.2]} 11... Bg6 {[%clk 0:02:44.5]} 12. h4 {[%clk 0:02:54.2]} 12...
h5 {[%clk 0:02:43.3]} 13. g5 {[%clk 0:02:38.2]} 13... Ne8 {[%clk 0:02:43.1]} 14.
Bd3 {[%clk 0:02:38.4]} 14... Bxd3 {[%clk 0:02:40.6]} 15. Qxd3 {[%clk 0:02:39.3]}
15... g6 {[%clk 0:02:40.8]} 16. Ne2 {[%clk 0:02:36.8]} 16... c4 {[%clk
0:02:35.3]} 17. Qc2 {[%clk 0:02:31.8]} 17... Nd6 {[%clk 0:02:35.9]} 18. Kf2
{[%clk 0:02:23.9]} 18... Nxb5 {[%clk 0:02:33.5]} 19. axb5 {[%clk 0:02:23.5]}
19... Nc7 {[%clk 0:02:32.1]} 20. Rxa8 {[%clk 0:02:23.7]} 20... Nxa8 {[%clk
0:02:31.1]} 21. Ra1 {[%clk 0:02:23.1]} 21... Nc7 {[%clk 0:02:17.6]} 22. Be5
{[%clk 0:02:19.4]} 22... Bd6 {[%clk 0:02:16.4]} 23. b6 {[%clk 0:02:03.9]} 23...
Nb5 {[%clk 0:02:14.3]} 24. Nf4 {[%clk 0:01:59.9]} 24... Bxe5 {[%clk 0:02:11.3]}
25. dxe5 {[%clk 0:02:00.8]} 25... Qxb6 {[%clk 0:02:10.8]} 26. Nxg6 {[%clk
0:01:56.6]} 26... d4 {[%clk 0:01:57.7]} 27. Nxf8 {[%clk 0:01:39.1]} 27... dxe3+
{[%clk 0:01:57.2]} 28. Ke2 {[%clk 0:01:39.1]} 28... Kxf8 {[%clk 0:01:57.8]} 29.
Ra8+ {[%clk 0:01:37.5]} 29... Ke7 {[%clk 0:01:56.8]} 30. Qd1 {[%clk 0:01:34.7]}
30... Nc7 {[%clk 0:01:53.8]} 31. Qd8# {[%clk 0:01:33.9]} 1-0